bitfinex/quotes_ETHUSD_20250511
["timestamp","ask_amount","ask_price","bid_price","bid_amount"]
[1746953440448,0.20250922,2480.1,2479.6,2.815]
[1746953440610,12.03274589,2479.7,2479.6,2.815]
[1746953440801,0.786,2479.5,2478.8,13.297]
[1746953441044,8.0,2479.2,2478.9,2.815]
[1746953441230,0.20245431,2479.1,2478.9,2.815]
[1746953441416,0.20245431,2479.1,2478.8,13.297]
[1746953441616,8.0,2478.9,2478.8,13.297]
[1746953441832,8.20126593,2478.9,2478.8,13.297]
[1746953442011,0.20126593,2478.9,2478.8,14.98452]
[1746953442207,2.814,2479.9,2478.8,15.74772]
[1746953442412,2.814,2479.9,2479.0,0.7632]
[1746953442629,8.16703282,2479.8,2479.2,0.7765]
[1746953442831,8.16703282,2479.8,2479.3,2.815]
[1746953443145,0.7528,2479.7,2478.9,0.7765]
[1746953443344,8.46472695,2479.8,2478.8,14.98452]
[1746953443345,0.7528,2479.3,2479.0,2.815]
[1746953443558,12.95251893,2479.6,2479.0,2.815]
[1746953443733,0.16654689,2479.2,2479.0,2.815]
[1746953444056,0.16620193,2479.1,2479.0,2.815]
[1746953444235,8.7528,2479.6,2479.0,3.5915]
[1746953444439,8.0,2479.2,2479.0,2.815]
[1746953444639,0.16620193,2479.1,2479.0,2.815]
[1746953444846,12.03327941,2479.4,2479.0,2.815]
[1746953445039,8.0,2479.2,2479.0,2.815]
[1746953445253,0.16627212,2479.3,2479.0,2.815]
[1746953445457,0.58622381,2479.3,2479.0,2.815]
[1746953445763,8.0,2479.2,2479.0,2.815]
[1746953446127,0.16594942,2479.1,2479.0,2.815]
[1746953449365,0.16594942,2479.1,2479.0,3.6025]
[1746953449551,2.814,2479.6,2479.0,3.6025]
[1746953449752,2.814,2480.1,2479.2,0.7875]
[1746953450144,2.814,2480.1,2479.3,0.04032362]
[1746953450544,2.814,2480.1,2479.2,0.7875]
[1746953451534,4.03235406,2480.0,2479.2,0.7875]
[1746953451754,2.814,2480.1,2479.3,0.04032825]
[1746953452069,4.03236048,2480.0,2479.2,0.7875]
[1746953452269,8.0,2479.9,2479.2,0.7875]
[1746953452569,6.84612738,2480.1,2479.2,0.7875]
[1746953452570,8.0,2480.0,2479.2,0.7875]
[1746953453439,15.45791357,2480.0,2479.2,0.7875]
[1746953453632,0.7795,2479.9,2479.2,0.7875]
[1746953453834,4.03293136,2479.6,2479.2,2.816]
[1746953454050,4.0327653,2479.7,2479.2,2.816]
[1746953454051,0.13742212,2479.5,2479.2,2.816]
[1746953454251,12.03276341,2479.7,2479.2,2.816]
[1746953454463,0.13746868,2479.6,2479.2,2.816]
[1746953455153,0.13746868,2479.6,2479.3,0.8146]
[1746953458384,0.13746868,2479.6,2479.3,1.21799165]
[1746953458619,0.30719612,2480.2,2479.3,1.21799165]
[1746953458829,0.13871059,2479.5,2479.3,1.17766]
[1746953458998,4.03304157,2479.6,2479.4,2.816]
[1746953459181,12.03278869,2479.7,2479.4,2.816]
[1746953459923,4.03296055,2479.6,2479.4,2.816]
[1746953460078,4.0333151,2479.4,2479.0,0.8167]
[1746953460273,4.03350226,2479.3,2479.1,2.816]
[1746953461017,4.03338177,2479.4,2479.1,2.816]
[1746953461320,4.03344382,2479.3,2479.1,2.816]
[1746953461621,4.03344382,2479.3,2479.2,2.816]
[1746953461622,4.03339652,2479.3,2479.2,2.816]
[1746953462126,8.0,2479.6,2479.2,3.6327]
[1746953463628,0.7881,2479.9,2479.2,3.99597]
[1746953463817,4.03228013,2480.0,2479.3,0.04033438]
[1746953464255,4.0326728,2479.8,2479.2,3.99597]
[1746953464537,4.03314712,2479.5,2479.2,3.6327]
[1746953464700,8.0,2479.5,2479.2,2.816]
[1746953464898,4.03332892,2479.4,2479.0,0.8167]
[1746953465204,4.03332892,2479.4,2479.1,2.816]
[1746953465956,12.03315566,2479.5,2479.1,2.816]
[1746953466096,0.7881,2480.0,2479.1,3.21960417]
[1746953466301,4.03243621,2479.9,2479.2,0.8167]
[1746953466636,4.03258696,2479.8,2479.2,0.8167]
[1746953466937,4.03284701,2479.7,2479.2,0.8167]
[1746953467142,8.0,2479.9,2479.2,0.8167]
[1746953467303,8.0,2480.2,2479.4,0.8167]
[1746953467502,8.0,2480.2,2479.5,0.04032656]
[1746953467747,2.811,2480.3,2479.6,0.8167]
[1746953467946,2.811,2480.3,2479.7,0.04032177]
[1746953468237,0.7881,2480.6,2479.8,0.8167]
[1746953468238,4.33440134,2480.6,2479.8,0.8167]
[1746953468405,4.33440134,2480.6,2479.9,2.8513195]
[1746953468814,4.03134539,2480.6,2479.9,2.8513195]
[1746953469012,6.84215552,2480.7,2479.9,2.8513195]
[1746953469212,0.1277793,2480.5,2479.9,2.8513195]
[1746953469415,4.03219534,2480.1,2480.0,2.811]
[1746953469759,4.03225806,2480.0,2479.3,0.8167]
[1746953469945,4.03303887,2479.6,2479.4,2.811]
[1746953470117,0.12892388,2479.5,2479.3,0.8167]
[1746953470318,4.03282088,2479.7,2479.4,2.811]
[1746953470527,4.16192671,2479.6,2479.4,2.811]
[1746953470754,4.03307118,2479.5,2479.1,0.8167]
[1746953470927,0.12887731,2479.4,2479.2,2.811]
[1746953471127,4.16213538,2479.4,2479.3,0.8167]
[1746953471329,0.12887731,2479.4,2479.3,0.8167]
[1746953471542,4.03276876,2479.7,2479.3,0.8167]
[1746953471723,0.12897044,2479.6,2479.3,0.8167]
[1746953471919,8.0,2479.8,2479.3,0.8167]
[1746953472119,0.12763385,2479.7,2479.3,0.8167]
[1746953472315,8.0,2479.8,2479.3,0.8167]
[1746953472519,0.12763385,2479.7,2479.3,1.21979998]
[1746953472755,2.81,2479.9,2479.3,1.21979998]
[1746953472957,0.1276804,2479.8,2479.3,1.21979998]
[1746953473663,0.1276804,2479.8,2479.4,0.8119]
[1746953473819,12.03201392,2480.2,2479.5,0.04032536]
[1746953474017,4.03242908,2479.9,2479.5,0.04032536]
[1746953474257,4.03242908,2479.9,2479.4,0.8119]
[1746953474562,0.12814051,2479.8,2479.4,0.8119]
[1746953474726,4.03234201,2480.0,2479.4,0.8119]
[1746953474927,0.12818705,2479.9,2479.4,0.8119]
[1746953475122,4.03211916,2480.1,2479.5,0.04032657]
[1746953475345,4.16049868,2480.0,2479.4,1.210467]
[1746953475523,0.799,2479.9,2479.5,2.811]
[1746953475724,4.03281026,2479.7,2479.5,2.811]
[1746953475925,0.12827743,2479.6,2478.8,13.297]
[1746953476125,4.03266155,2479.8,2478.9,4.9526]
[1746953476451,0.12832398,2479.7,2479.0,0.85223078]
[1746953476655,12.03229537,2480.0,2479.0,0.85223078]
[1746953476958,0.12841708,2479.9,2479.0,0.85223078]
[1746953477144,4.03250724,2479.9,2479.0,0.8119]
[1746953477357,0.12837053,2479.8,2479.1,0.49526]
[1746953477558,0.12837053,2479.8,2479.2,0.04032856]
[1746953478164,0.12837053,2479.8,2479.3,0.8039]
[1746953478330,0.799,2480.1,2479.3,0.8039]
[1746953478531,8.12818759,2480.0,2479.3,0.8039]
[1746953478958,8.12818759,2480.0,2479.4,0.04032859]
[1746953479145,12.16048494,2480.0,2479.5,2.811]
[1746953479348,0.12818759,2480.0,2479.5,3.17652286]
[1746953480161,8.8024,2480.3,2479.6,0.84422363]
[1746953480347,0.12828067,2480.2,2479.6,0.84422363]
[1746953480734,2.809,2480.5,2479.6,0.84421874]
[1746953480934,0.12837373,2480.4,2479.6,0.84421874]
[1746953481145,4.0312139,2480.7,2479.8,0.8039]
[1746953481468,0.11787745,2480.6,2480.0,8.8039]
[1746953481633,0.8024,2481.1,2480.2,0.8039]
[1746953481828,0.10834497,2481.0,2480.2,0.8039]
[1746953482534,7.64158903,2481.3,2480.2,0.8039]
[1746953482747,7.64158903,2481.3,2480.4,0.7636]
[1746953482748,0.10829846,2480.9,2480.4,0.7636]
[1746953482948,7.64158903,2481.3,2480.4,0.7636]
[1746953483144,0.10825195,2480.8,2480.4,0.7636]
[1746953483368,7.64158903,2481.3,2480.4,0.7636]
[1746953483666,4.03041525,2481.2,2480.4,0.7636]
[1746953483842,4.14133806,2481.1,2480.4,0.80390591]
[1746953484050,4.14126739,2481.1,2480.4,0.80390591]
[1746953484231,4.03088428,2480.9,2480.4,0.7636]
[1746953484436,0.11303511,2480.8,2480.5,2.811]
[1746953484778,0.11303511,2480.8,2480.6,0.80391045]
[1746953484983,0.7961,2481.6,2480.7,3.17249105]
[1746953485187,4.0301219,2481.4,2480.7,2.811]
[1746953485487,0.10461639,2481.3,2480.7,2.811]
[1746953486182,4.03032988,2481.2,2480.7,2.811]
[1746953486387,4.03036485,2481.2,2480.8,2.811]
[1746953486685,0.10452339,2481.1,2480.8,2.811]
[1746953486980,3.42560236,2481.4,2480.8,2.811]
[1746953487168,0.10514444,2481.0,2480.8,2.811]
[1746953487370,4.03016642,2481.3,2480.8,2.811]
[1746953487570,0.10509793,2480.9,2480.8,2.811]
[1746953487741,4.81316316,2481.2,2480.8,2.81]
[1746953487945,0.10509793,2480.9,2480.8,2.81]
[1746953488142,4.81310962,2481.2,2480.8,2.81]
[1746953488346,0.10509793,2480.9,2480.8,2.81]
[1746953488846,4.03053877,2481.1,2480.8,2.81]
[1746953489052,0.10514444,2481.0,2480.8,2.81]
[1746953490209,0.7828,2481.2,2480.8,2.81]
[1746953490365,0.10509793,2480.9,2480.8,3.6342]
[1746953490556,8.0,2481.3,2480.8,3.99762]
[1746953490760,0.10509793,2480.9,2480.8,3.99762]
[1746953491008,4.03014796,2481.3,2480.8,3.99762]
[1746953491297,4.81285895,2481.4,2480.8,3.99762]
[1746953491495,0.10523744,2481.2,2480.9,0.04030408]
[1746953491796,4.02998307,2481.4,2480.8,3.6342]
[1746953491963,0.10473058,2481.1,2480.8,3.6342]
[1746953492320,0.10468408,2481.0,2480.8,3.6342]
[1746953492476,0.7828,2481.7,2480.9,0.04030219]
[1746953492816,0.10496304,2481.6,2480.9,0.36745022]
[1746953493014,0.10496304,2481.6,2481.0,0.8239]
[1746953493303,0.10496304,2481.6,2481.2,0.8239]
[1746953493515,4.02951042,2481.7,2481.2,0.8239]
[1746953493666,0.09633214,2481.6,2481.2,0.8239]
[1746953494084,4.0293775,2481.8,2481.2,0.8239]
[1746953494317,4.02978034,2481.6,2481.2,2.81]
[1746953494473,4.02991562,2481.5,2481.2,2.81]
[1746953494671,0.09623917,2481.4,2481.2,2.81]
[1746953494974,4.12633169,2481.4,2481.2,2.81]
[1746953495195,4.03014548,2481.3,2481.2,2.81]
[1746953495594,4.12633816,2481.3,2481.2,2.81]
[1746953495798,0.09619268,2481.3,2481.2,2.81]
[1746953495997,4.12633816,2481.3,2481.2,2.81]
[1746953497305,0.09619268,2481.3,2481.2,2.81]
[1746953497812,0.09619268,2481.3,2481.2,3.9149]
[1746953498310,0.09695226,2481.3,2481.2,3.9149]
[1746953498541,4.02950289,2481.7,2481.2,3.9149]
[1746953498677,0.09695226,2481.3,2481.2,3.6339]
[1746953498878,3.42560236,2481.8,2481.2,2.81]
[1746953499071,0.7595,2481.4,2481.1,2.806]
[1746953499275,0.09695226,2481.3,2481.0,0.8239]
[1746953499472,0.7595,2481.6,2481.1,2.84630366]
[1746953499473,4.78925555,2481.6,2481.1,2.84630366]
[1746953499690,0.09704524,2481.5,2481.1,2.806]
[1746953499888,4.12687787,2481.5,2481.1,2.806]
[1746953501687,0.09704524,2481.5,2481.1,2.806]
[1746953502020,4.03128275,2480.6,2480.5,2.806]
[1746953502316,4.12790946,2480.6,2480.5,2.806]
[1746953502885,4.03177035,2480.3,2480.2,2.806]
[1746953503084,4.12825749,2480.3,2480.2,2.806]
[1746953503328,4.0319329,2480.2,2480.1,16.108]
[1746953503823,12.12837351,2480.2,2480.1,16.108]
[1746953504035,8.09644061,2480.2,2479.4,2.806]
[1746953504187,4.03297443,2479.6,2479.4,2.806]
[1746953504612,0.09611477,2479.5,2479.4,2.806]
[1746953505120,2.805,2479.8,2479.4,3.16672]
[1746953505322,0.09611477,2479.5,2479.4,3.16672]
[1746953505619,2.805,2479.8,2479.4,3.16672]
[1746953505825,0.09611477,2479.5,2479.4,3.16672]
[1746953506034,4.03274589,2479.7,2479.4,3.16672]
[1746953506323,2.805,2479.8,2479.4,3.16672]
[1746953506324,6.83765136,2479.8,2479.4,3.16672]
[1746953506524,0.09616133,2479.6,2479.4,3.16672]
[1746953506686,2.805,2479.8,2479.4,3.16672]
[1746953507017,0.09293797,2479.7,2479.4,3.16672]
[1746953507438,2.805,2479.8,2479.4,3.16672]
[1746953507936,0.0850251,2479.7,2479.4,3.16672]
[1746953508104,2.805,2479.8,2479.5,0.316672]
[1746953508434,0.08497854,2479.6,2479.5,0.316672]
[1746953508931,4.03228848,2480.0,2479.5,0.316672]
[1746953509136,0.08246969,2479.9,2479.5,0.316672]
[1746953509944,7.7647772,2480.1,2479.5,0.316672]
[1746953510112,0.08251624,2480.0,2479.5,0.316672]
[1746953510610,4.0326984,2479.8,2479.4,2.806]
[1746953511017,0.08237659,2479.7,2479.4,2.806]
[1746953511415,4.0326984,2479.8,2479.4,2.806]
[1746953511740,4.03248863,2479.9,2479.4,2.806]
[1746953511935,0.08242314,2479.8,2479.4,2.806]
[1746953512103,0.08242314,2479.8,2479.4,3.16672]
[1746953512304,4.03206234,2480.2,2479.5,0.04032809]
[1746953512602,0.08256278,2480.1,2479.6,0.8214]
[1746953513021,0.11361067,2480.1,2479.6,0.8214]
[1746953513420,2.805,2480.5,2479.7,0.0403212]
[1746953513621,0.11388715,2480.0,2479.7,0.0403212]
[1746953513820,2.805,2480.5,2479.7,0.0403212]
[1746953514029,0.11381734,2479.9,2479.7,0.0403212]
[1746953514332,0.11374751,2479.8,2479.7,0.0403212]
[1746953514535,15.456735,2480.7,2479.7,0.0403212]
[1746953514536,0.792,2480.9,2479.7,0.8617212]
[1746953514735,0.11444548,2480.8,2479.7,0.8617212]
[1746953514943,0.11444548,2480.8,2479.8,0.55]
[1746953515114,0.07625047,2480.8,2480.0,0.8214]
[1746953515309,6.83571692,2481.0,2480.2,0.8214]
[1746953515510,0.07634349,2480.9,2480.2,0.8214]
[1746953515709,0.07634349,2480.9,2480.3,0.04030974]
[1746953515912,7.02160236,2481.6,2480.4,0.8214]
[1746953516110,6.83341251,2481.8,2480.6,0.8214]
[1746953516358,0.29907965,2482.1,2480.8,8.8214]
[1746953516539,4.02867461,2482.3,2480.9,0.86169631]
[1746953516718,6.83267461,2482.3,2480.9,0.86169631]
[1746953517049,6.832542,2482.3,2480.9,0.86169631]
[1746953517949,4.21760236,2482.7,2481.2,8.55]
[1746953518112,8.24556696,2482.7,2481.4,8.0]
[1746953518312,0.11391978,2482.6,2481.5,0.82218602]
[1746953518584,8.0,2482.9,2481.5,0.82218602]
[1746953518585,2.803,2482.9,2481.5,0.82218602]
[1746953518730,0.08094264,2482.8,2481.5,0.82218602]
[1746953519043,4.10872839,2482.8,2481.5,0.82218602]
[1746953519247,0.08094264,2482.8,2481.7,0.7819]
[1746953519932,4.10870177,2482.8,2481.7,0.7819]
[1746953520339,4.02787288,2482.7,2481.7,0.7819]
[1746953520542,0.08089576,2482.6,2481.7,0.7819]
[1746953520716,4.02838496,2482.4,2481.7,0.7819]
[1746953520920,0.08241191,2482.3,2481.7,0.7819]
[1746953521249,0.08241191,2482.3,2481.8,0.04028291]
[1746953521445,0.08241191,2482.3,2481.9,2.806]
[1746953521657,4.02780841,2482.8,2481.9,2.806]
[1746953521835,0.08236546,2482.2,2481.9,2.806]
[1746953522041,4.02780841,2482.8,2482.0,0.7819]
[1746953522455,4.02836548,2482.4,2482.0,0.7819]
[1746953522825,0.08241191,2482.3,2482.0,0.7819]
[1746953523758,4.02840468,2482.4,2482.0,0.7819]
[1746953524064,4.02915041,2482.0,2481.9,2.805]
[1746953524358,0.08201967,2482.0,2481.9,2.805]
[1746953524539,4.11102853,2482.0,2481.9,2.805]
[1746953524738,0.08201967,2482.0,2481.9,2.805]
[1746953524921,4.02835805,2482.5,2481.9,3.16347]
[1746953525122,12.78312946,2482.7,2482.0,0.04028536]
[1746953525123,0.08220551,2482.4,2482.0,0.04028536]
[1746953525349,2.802,2482.8,2481.9,3.16347]
[1746953525538,4.02843867,2482.4,2481.9,3.16347]
[1746953525740,0.07920923,2482.3,2481.9,3.16347]
[1746953525963,2.802,2482.8,2482.0,0.316347]
[1746953526165,4.10736472,2482.7,2482.1,0.7797]
[1746953526366,4.0280615,2482.6,2482.1,0.7797]
[1746953526526,4.02849028,2482.4,2482.1,0.7797]
[1746953526729,0.07920923,2482.3,2482.1,0.7797]
[1746953527149,4.1077923,2482.3,2482.1,0.7797]
[1746953527347,0.07920923,2482.3,2481.9,2.805]
[1746953527666,4.02843263,2482.4,2481.9,3.16826]
[1746953527966,0.07920923,2482.3,2481.9,3.16826]
[1746953528148,4.10774882,2482.3,2481.9,3.16826]
[1746953528465,4.02872227,2482.2,2481.9,3.16826]
[1746953528966,0.08061097,2482.1,2481.9,3.16826]
[1746953529137,4.02844367,2482.4,2481.9,0.36326]
[1746953529346,0.08070389,2482.3,2482.0,2.801]
[1746953529655,4.02849545,2482.4,2482.0,2.801]
[1746953529828,4.02819738,2482.5,2482.0,2.801]
[1746953529829,0.08065743,2482.2,2482.0,2.801]
[1746953530034,4.02835965,2482.4,2482.0,2.801]
[1746953530247,0.08061097,2482.1,2482.0,2.801]
[1746953530449,4.02849142,2482.4,2482.0,2.801]
[1746953530763,4.02838279,2482.4,2482.0,2.801]
[1746953530971,4.10923363,2482.3,2482.0,2.801]
[1746953531169,4.10923363,2482.3,2481.8,0.8276]
[1746953531170,4.02917119,2481.9,2481.8,0.8276]
[1746953531467,4.02938531,2481.8,2481.5,0.8045]
[1746953531666,4.02938531,2481.8,2481.3,14.57375024]
[1746953531667,4.02998307,2481.4,2481.3,13.298]
[1746953531873,4.02998307,2481.4,2481.1,2.801]
[1746953532165,4.02998307,2481.4,2480.9,0.8045]
[1746953532166,4.03014548,2481.3,2481.2,2.801]
[1746953532367,4.1101777,2481.3,2481.2,2.801]
[1746953532571,0.08003222,2481.3,2481.2,2.801]
[1746953532778,2.801,2481.5,2481.2,2.801]
[1746953532949,0.08007871,2481.4,2481.2,2.801]
[1746953533350,0.08007871,2481.4,2481.2,3.0811]
[1746953533549,4.02902629,2482.0,2481.3,0.8659968]
[1746953533893,12.02890039,2482.1,2481.3,0.8257]
[1746953534186,4.02909563,2482.0,2481.4,0.04029452]
[1746953534366,11.07914401,2482.2,2481.3,0.8257]
[1746953534367,4.02884654,2482.1,2481.3,0.8257]
[1746953534563,4.02884654,2482.1,2481.4,0.39068]
[1746953535135,3.42560236,2482.2,2481.4,0.39068]
[1746953535538,4.02928361,2481.9,2481.4,0.39068]
[1746953535774,3.42560236,2482.2,2481.5,2.84129162]
[1746953535990,7.45435141,2482.2,2481.5,2.84129162]
[1746953536192,14.22560236,2482.5,2481.7,0.8257]
[1746953536351,10.25382085,2482.5,2481.7,0.86599076]
[1746953536554,4.02843746,2482.4,2481.7,0.86599076]
[1746953537162,8.0,2482.4,2481.7,0.8257]
[1746953537479,6.82812533,2482.6,2481.8,0.04029076]
[1746953537662,6.82812533,2482.6,2481.8,1.48840955]
[1746953538042,4.02820522,2482.5,2481.8,1.48840955]
[1746953538461,4.0282534,2482.5,2481.8,1.48840955]
[1746953538770,4.02819738,2482.5,2481.8,1.48840491]
[1746953538940,4.02839256,2482.4,2481.8,1.48840491]
[1746953539141,4.02862382,2482.3,2481.8,1.44811879]
[1746953540282,7.45386521,2482.5,2481.7,0.8257]
[1746953540463,4.028501,2482.4,2481.8,0.04028614]
[1746953540781,4.02855929,2482.3,2481.8,0.04028614]
[1746953541148,4.02843799,2482.4,2481.8,0.04028614]
[1746953541348,7.45387769,2482.5,2481.8,0.04028614]
[1746953541575,7.45387769,2482.5,2481.8,1.48840447]
[1746953541780,4.02838329,2482.4,2481.8,1.44811833]
[1746953542087,4.0288014,2482.2,2481.7,0.8257]
[1746953542587,4.02857659,2482.3,2481.8,0.04028912]
[1746953542747,3.42560236,2482.5,2481.7,0.8257]
[1746953542948,0.7939,2482.4,2481.7,0.8257]
[1746953543242,4.02869117,2482.2,2481.7,0.8257]
[1746953543469,4.02852193,2482.3,2481.7,2.54988972]
[1746953543671,4.02885712,2482.1,2481.7,0.8257]
[1746953544690,4.02904257,2482.0,2481.7,0.8257]
[1746953544857,4.02897497,2482.1,2481.7,0.8257]
[1746953545056,4.02901811,2482.0,2481.7,0.8257]
[1746953545384,4.02912211,2482.0,2481.7,0.8257]
[1746953545683,4.02918606,2481.9,2481.6,13.292]
[1746953546096,4.02909868,2482.0,2481.6,13.292]
[1746953546689,4.02884654,2482.1,2481.6,13.292]
[1746953546992,4.02901636,2482.0,2481.6,14.98301]
[1746953547592,4.02891208,2482.1,2481.6,14.98301]
[1746953547997,7.45436102,2482.2,2481.6,14.98301]
[1746953548289,4.02898375,2482.1,2481.6,14.98301]
[1746953548454,7.45433467,2482.2,2481.7,1.778401]
[1746953549095,4.02859649,2482.3,2481.8,0.7824]
[1746953549985,14.82637317,2482.4,2481.8,0.7824]
[1746953549986,4.02884721,2482.1,2481.8,0.7824]
[1746953550194,4.02900603,2482.1,2481.8,0.7824]
[1746953551389,4.02874872,2482.2,2481.9,2.801]
[1746953551571,4.02884966,2482.1,2481.9,2.801]
[1746953552191,4.02874914,2482.2,2481.9,2.801]
[1746953553015,4.02861338,2482.3,2481.9,2.801]
[1746953553706,4.02840618,2482.4,2481.9,2.801]
[1746953554077,10.25183083,2482.5,2481.9,2.801]
[1746953554279,6.22360236,2482.5,2481.9,2.801]
[1746953554589,7.45431111,2482.2,2482.0,2.801]
[1746953554784,4.02860486,2482.3,2482.0,2.801]
[1746953556103,6.22360236,2482.5,2482.0,2.801]
[1746953556104,4.028752,2482.2,2482.0,2.801]
[1746953556274,4.02884654,2482.1,2482.0,2.801]
[1746953557186,4.02852193,2482.3,2482.0,2.801]
[1746953557379,4.02884654,2482.1,2482.0,2.801]
[1746953558018,4.02884654,2482.1,2480.5,0.44022441]
[1746953558019,0.7528,2481.6,2481.1,2.797]
[1746953558312,4.03030791,2481.2,2481.1,2.797]
[1746953559291,4.03018287,2481.3,2481.1,2.797]
[1746953559486,7.4556414,2481.4,2481.1,2.797]
[1746953559487,3.42560236,2481.4,2481.1,2.797]
[1746953559686,4.02985435,2481.5,2481.2,0.2797]
[1746953560016,12.03030791,2481.2,2481.1,2.797]
[1746953560781,8.0,2481.2,2481.1,2.797]
[1746953561002,4.03030791,2481.2,2481.1,2.797]
[1746953561505,12.03030791,2481.2,2481.1,2.797]
[1746953561895,4.03128275,2480.6,2480.5,16.52722441]
[1746953562276,4.03115267,2480.7,2480.5,16.52722441]
[1746953562473,2.796,2481.0,2480.5,18.26256685]
[1746953562712,6.82667436,2481.0,2480.5,18.26256685]
[1746953562915,4.03079527,2480.9,2480.5,18.26256685]
[1746953564727,2.796,2481.0,2480.6,0.04031154]
[1746953565020,2.796,2481.0,2480.5,18.26256685]
[1746953565173,2.796,2481.0,2480.6,1.90887668]
[1746953566513,6.82664335,2481.0,2480.6,1.90887668]
[1746953566884,6.8266431,2481.0,2480.6,1.90887668]
[1746953567090,2.796,2481.0,2480.6,1.90887668]
[1746953567512,6.82664877,2481.0,2480.6,1.90887668]
[1746953568082,4.03081325,2480.9,2480.6,1.90887668]
[1746953568283,4.0309354,2480.9,2480.6,1.90887668]
[1746953569200,6.82674648,2481.0,2480.6,1.90887668]
[1746953569395,0.30206918,2481.2,2480.8,0.8262]
[1746953569580,4.03010093,2481.4,2480.8,0.86650353]
[1746953569783,4.03016137,2481.3,2480.8,0.86650353]
[1746953570413,4.03016137,2481.3,2480.8,0.8262]
[1746953570584,4.03047066,2481.1,2480.8,1.09318101]
[1746953570924,4.03038054,2481.2,2480.8,1.09318101]
[1746953573725,4.32683742,2481.3,2480.8,1.09318101]
[1746953574212,0.29661886,2481.3,2480.8,1.09318101]
[1746953574396,4.02999302,2481.4,2480.8,1.09318101]
[1746953574602,4.02999302,2481.4,2480.9,0.29367911]
[1746953575014,4.32827404,2481.4,2480.9,0.29367911]
[1746953575213,0.29828102,2481.4,2480.9,0.29367911]
[1746953575390,4.0299936,2481.4,2480.9,0.29367911]
[1746953575596,4.02982067,2481.5,2480.9,0.29367911]
[1746953575786,4.03016571,2481.3,2480.9,0.29367911]
[1746953576718,4.03007279,2481.4,2480.9,0.29367911]
[1746953577212,4.03003724,2481.4,2480.9,0.29367911]
[1746953577388,6.21960236,2482.5,2481.2,0.8262]
[1746953577588,6.21960236,2482.5,2481.4,0.8262]
[1746953577792,4.02908644,2482.0,2481.4,0.8262]
[1746953577979,4.02892631,2482.1,2481.4,0.8262]
[1746953578888,4.02888137,2482.1,2481.4,0.8262]
[1746953579102,4.02874838,2482.2,2481.5,0.36242]
[1746953579301,4.02865283,2482.3,2481.6,0.86649111]
[1746953579698,4.02870675,2482.2,2481.6,0.86649111]
[1746953579893,4.02860767,2482.3,2481.6,0.86649111]
[1746953580220,4.0287326,2482.2,2481.6,0.86649111]
[1746953580410,4.02884654,2482.1,2481.6,0.8262]
[1746953580606,4.21190236,2482.2,2481.6,0.8262]
[1746953580922,4.02912614,2482.0,2481.6,0.8262]
[1746953581218,4.02943786,2481.8,2481.6,0.8262]
[1746953581808,4.02966018,2481.6,2481.3,3.6242]
[1746953582011,4.02966018,2481.6,2481.4,2.797]
[1746953582220,4.02949591,2481.7,2481.3,0.8262]
[1746953582417,7.85821023,2481.6,2481.5,2.797]
[1746953582612,3.82855195,2481.6,2481.4,2.797]
[1746953582934,4.02984978,2481.5,2481.4,2.797]
[1746953584199,4.03085868,2480.9,2480.7,0.8262]
[1746953584414,3.42560236,2480.9,2480.4,0.8262]
[1746953584595,4.03112024,2480.7,2480.6,2.797]
[1746953585534,4.03112024,2480.7,2480.3,2.797]
[1746953585535,4.03128275,2480.6,2480.3,2.797]
[1746953586040,8.29655095,2480.9,2480.5,16.20914685]
[1746953586188,4.03095775,2480.8,2480.5,16.20914685]
[1746953586395,4.03128275,2480.6,2480.5,13.73022441]
[1746953587728,7.45688511,2480.6,2480.5,13.73022441]
[1746953588043,7.45688511,2480.6,2480.5,0.44022441]
[1746953589037,0.8129,2480.0,2479.2,2.792]
[1746953589239,3.42560236,2479.6,2479.1,2.792]
[1746953589532,4.03289004,2479.7,2479.1,3.6029]
[1746953589723,4.0329499,2479.6,2479.1,3.96319]
[1746953590325,6.21760236,2479.9,2479.1,3.96319]
[1746953590528,4.03299755,2479.6,2479.1,3.96319]
[1746953590762,2.792,2479.9,2479.1,3.96319]
[1746953590968,6.82445241,2479.9,2479.1,3.96319]
[1746953591124,4.84519355,2480.0,2479.2,0.396319]
[1746953591324,4.03242066,2479.9,2479.2,0.396319]
[1746953591521,2.792,2480.0,2479.2,0.396319]
[1746953591766,4.03249543,2479.9,2479.2,0.396319]
[1746953591935,4.03271402,2479.8,2479.2,0.396319]
[1746953592264,4.03285599,2479.7,2479.1,3.6029]
[1746953593557,3.42560236,2479.6,2479.1,3.6029]
[1746953593726,4.03333672,2479.4,2479.1,3.6029]
[1746953593927,4.03312953,2479.5,2479.1,3.6029]
[1746953594862,4.03278396,2479.7,2479.1,3.6029]
[1746953595454,4.03299482,2479.6,2479.1,3.6029]
[1746953595664,4.03324702,2479.4,2479.1,2.792]
[1746953595967,12.24770236,2479.9,2479.1,2.792]
[1746953595968,3.42560236,2479.6,2479.1,2.792]
[1746953596127,8.8221,2479.9,2479.1,2.792]
[1746953596128,4.03355921,2479.2,2479.1,2.792]
[1746953596548,4.34264582,2479.2,2479.1,2.792]
[1746953599943,4.0346984,2478.5,2477.8,2.794]
[1746953600145,4.03557512,2478.0,2477.8,2.794]
[1746953600456,8.28296973,2478.2,2477.8,2.794]
[1746953600863,8.8221,2478.7,2477.8,2.794]
[1746953601032,4.03514888,2478.3,2477.8,2.794]
[1746953601234,4.03495875,2478.4,2477.9,0.7856]
[1746953601854,3.42560236,2478.1,2477.8,0.2794]
[1746953602056,6.21760236,2478.1,2477.4,0.7856]
[1746953602238,8.0,2478.1,2477.4,3.5806]
[1746953602440,12.03540541,2478.1,2477.4,3.5806]
[1746953602738,4.03576451,2477.9,2477.4,3.5806]
[1746953603058,12.03540541,2478.1,2477.4,3.5806]
[1746953603059,4.0355659,2478.0,2477.4,3.5806]
[1746953603458,4.03571233,2477.9,2477.4,3.5806]
[1746953603662,4.03584459,2477.8,2477.4,3.5806]
[1746953604237,4.03531646,2478.2,2477.5,0.04036111]